bitfinex-derivatives/quotes_BNBF0:USTF0_20250424
["timestamp","ask_amount","ask_price","bid_price","bid_amount"]
[1745464548875,0.28753914,606.37,604.42,0.30359299]
[1745464549775,0.28753914,606.37,604.41,3.41653914]
[1745464549973,0.28753914,606.37,604.42,0.30361156]
[1745464550370,0.28753914,606.37,604.41,3.41653914]
[1745464551674,1.25490548,606.65,604.41,3.129]
[1745464552475,1.25490548,606.65,604.42,0.3036367]
[1745464552870,1.25490548,606.65,604.41,3.129]
[1745464553076,0.28752251,606.64,604.43,0.30362273]
[1745464553269,0.28752251,606.64,604.42,0.30362273]
[1745464553473,1.25490548,606.62,604.43,0.30362273]
[1745464553675,1.25490548,606.62,604.42,0.30362273]
[1745464553969,1.25490548,606.62,604.43,0.30362273]
[1745464554274,1.25490548,606.62,604.44,0.30362273]
[1745464554578,1.25490548,606.62,604.42,0.30362273]
[1745464554773,1.25490548,606.62,604.45,0.30362273]
[1745464554972,1.25490548,606.62,604.46,0.30362273]
[1745464555178,1.25490548,606.62,604.42,0.30362273]
[1745464555379,1.25490548,606.62,604.43,0.30362273]
[1745464555673,1.25490548,606.62,604.42,0.30362273]
[1745464555877,0.28752489,606.61,604.43,0.30362273]
[1745464556073,1.25490548,606.52,604.44,0.30362384]
[1745464556376,1.25490548,606.52,604.45,0.30362384]
[1745464556576,1.25490548,606.52,604.46,0.30362384]
[1745464556777,1.25490548,606.52,604.47,0.30362384]
[1745464556977,1.25490548,606.52,604.47,1.358]
[1745464557176,1.25490548,606.52,604.48,0.30362384]
[1745464558473,1.25490548,606.06,604.48,0.30362384]
[1745464559078,0.28758429,606.05,604.47,1.358]
[1745464559277,0.28758429,606.05,604.48,0.30362891]
[1745464560581,1.25490548,606.06,604.47,1.358]
[1745464560775,1.25490548,606.06,604.48,0.30362896]
[1745464561075,0.28758429,606.04,604.48,0.30362896]
[1745464561380,1.25490548,605.99,604.48,0.30362896]
[1745464561775,1.25490548,605.99,604.49,0.30362913]
[1745464562078,1.25490548,605.99,604.5,0.30362913]
[1745464562275,1.25490548,605.99,604.48,0.30362913]
[1745464562477,1.25490548,605.99,604.51,0.30362913]
[1745464562677,1.25490548,605.99,604.52,0.30362913]
[1745464562877,1.25490548,605.99,604.47,1.358]
[1745464565085,0.28760212,605.98,604.47,1.358]
[1745464565379,0.28760212,605.98,604.48,0.30364263]
[1745464566285,0.28760212,605.98,604.47,1.358]
[1745464566584,0.28760212,605.98,604.48,0.30362921]
[1745464569481,0.28760212,605.98,604.47,1.358]
[1745464569787,1.25490548,606.06,604.48,0.30362732]
[1745464570187,1.25490548,606.06,604.48,1.41662732]
[1745464570387,1.25490548,606.06,604.49,0.30362732]
[1745464570886,0.28759261,606.05,604.49,0.30362732]
[1745464571190,0.28759261,606.05,604.5,0.30364765]
[1745464571389,0.28759261,606.05,604.49,0.30364765]
[1745464572385,1.25490548,605.94,604.49,0.30364765]
[1745464572590,1.25490548,605.94,604.49,1.44764765]
[1745464572891,1.25490548,605.94,604.5,0.30364765]
[1745464573089,1.25490548,605.94,604.49,1.144]
[1745464574991,0.28762232,605.95,604.49,1.144]
[1745464575689,1.25490548,606.11,604.49,1.144]
[1745464576089,0.28760925,605.94,604.49,1.144]
[1745464576389,1.25490548,606.11,604.49,1.144]
[1745464577090,0.28760925,606.1,604.49,1.144]
[1745464578688,1.25490548,606.15,604.49,1.144]
[1745464580098,0.60527318,612.96,604.49,1.144]
[1745464580099,1.25490548,606.22,604.49,1.144]
[1745464582703,1.25490548,606.19,604.49,1.144]
[1745464586198,0.28757122,606.18,604.49,1.144]
[1745464587706,1.25490548,606.72,604.49,1.144]
[1745464587901,0.28750826,606.17,604.49,1.144]
[1745464588312,1.25490548,606.72,604.49,1.144]
[1745464588804,1.25490548,606.72,604.5,1.151]
[1745464589003,0.28750826,606.71,604.5,1.151]
[1745464590108,0.28750826,606.71,604.51,1.64363533]
[1745464590308,0.28750826,606.71,604.52,0.30363533]
[1745464590508,0.28750826,606.71,604.52,1.86063533]
[1745464590811,1.25490548,606.72,604.53,0.30363533]
[1745464591410,1.25490548,606.72,604.52,1.557]
[1745464591709,1.25490548,606.72,604.53,0.30359763]
[1745464592004,1.25490548,605.96,604.53,0.30359763]
[1745464594413,1.25490548,606.2,604.53,0.30359763]
[1745464595112,0.28752608,606.19,604.53,0.30359763]
[1745464596514,0.28752608,606.19,604.53,1.80959763]
[1745464596713,1.25490548,606.2,604.54,0.30359763]
[1745464597314,1.25490548,606.2,604.53,1.506]
[1745464598015,0.2875439,606.19,604.53,1.506]
[1745464600915,0.2875439,606.19,604.54,0.30363515]
[1745464602619,1.25490548,606.31,604.54,0.30363515]
[1745464603019,0.28755221,606.18,604.54,0.30363515]
[1745464603318,1.25490548,606.31,604.54,0.30363515]
[1745464603918,1.25490548,606.31,604.53,1.506]
[1745464604118,0.28754508,606.3,604.54,0.30362418]
[1745464605319,1.25490548,606.22,604.54,0.30362418]
[1745464605513,1.25490548,606.22,604.55,0.30362461]
[1745464605713,1.25490548,606.22,604.54,0.30362461]
[1745464605914,1.25490548,606.22,604.53,1.506]
[1745464606115,1.25490548,606.22,604.54,0.30363379]
[1745464606918,0.28755578,606.21,604.54,0.30363379]
[1745464608522,0.28755578,606.21,604.53,1.506]
[1745464608717,1.25490548,606.31,604.54,0.30363721]
[1745464609423,1.25490548,606.31,604.53,1.506]
[1745464610022,1.25490548,606.27,604.53,1.506]
[1745464612721,2.13508225,606.9,604.53,1.506]
[1745464612722,1.25490548,606.39,604.53,1.506]
[1745464612920,0.28755696,606.26,604.53,1.506]
[1745464613225,1.25490548,606.39,604.53,1.506]
[1745464613524,0.28754271,606.25,604.53,1.506]
[1745464613827,1.25490548,606.39,604.53,1.506]
[1745464614132,0.28754271,606.24,604.53,1.506]
[1745464614622,1.25490548,606.39,604.53,1.506]
[1745464615025,0.28754271,606.23,604.53,1.506]
[1745464615226,1.25490548,606.39,604.53,1.506]
[1745464615727,1.25490548,606.35,604.53,1.506]
[1745464617130,1.25490548,606.35,604.53,2.633]
[1745464618530,0.2875736,606.38,604.53,2.633]
[1745464619430,0.2875736,606.38,604.53,4.22]
[1745464620233,1.25490548,606.23,604.53,4.22]
[1745464621930,0.28756885,606.22,604.53,4.22]
[1745464622735,0.28756885,606.22,604.54,0.3036531]
[1745464623636,1.25490548,606.4,604.54,0.3036531]
[1745464624637,1.25490548,606.02,604.54,0.3036531]
[1745464625232,1.25490548,606.02,604.55,0.30361933]
[1745464625435,1.25490548,606.02,604.56,0.30361933]
[1745464625635,1.25490548,606.02,604.57,0.30361933]
[1745464625837,1.25490548,606.02,604.54,0.30361933]
[1745464626133,1.25490548,606.02,604.55,0.30361933]
[1745464626339,1.25490548,606.02,604.54,1.51361933]
[1745464626542,1.25490548,606.02,604.55,0.30361933]
[1745464626839,1.25490548,606.15,604.55,0.30361933]
[1745464627937,0.28755815,606.14,604.55,0.30361933]
[1745464629243,0.28755815,606.14,604.54,1.21]
[1745464629742,1.25490548,606.15,604.54,1.21]
[1745464629942,0.28755815,606.13,604.54,1.21]
[1745464632644,1.25490548,606.14,604.54,1.21]
[1745464633246,1.25490548,606.87,604.54,1.21]
[1745464633540,1.25490548,606.87,604.54,2.896]
[1745464633945,0.28747264,606.86,604.54,2.896]
[1745464638748,1.25490548,606.94,604.54,2.896]
[1745464639149,1.25490548,606.71,604.54,2.896]
[1745464640050,0.28752014,606.7,604.54,2.896]
[1745464641754,1.25490548,606.71,604.54,2.896]
[1745464642051,1.25490548,606.71,604.54,4.028]
[1745464642251,1.25490548,606.61,604.54,4.028]
[1745464642955,0.28753202,606.6,604.54,4.028]
[1745464644749,1.25490548,606.61,604.54,4.028]
[1745464645655,1.25490548,606.5,604.54,4.028]
[1745464646660,1.25490548,606.5,604.55,0.3036614]
[1745464648060,1.25490548,606.51,604.55,0.3036614]
[1745464648261,1.25490548,606.51,604.55,1.5626614]
[1745464648459,1.25490548,606.51,604.56,0.3036614]
[1745464648858,1.25490548,606.51,604.55,1.259]
[1745464649055,0.28753083,606.5,604.55,1.259]
[1745464650565,0.28753083,606.5,604.55,2.939]
[1745464650863,1.25490548,606.41,604.55,2.939]
[1745464651463,1.25490548,606.41,604.56,0.30357905]
[1745464651963,1.25490548,606.41,604.55,2.939]
[1745464652164,1.25490548,606.41,604.56,0.30357491]
[1745464653367,0.28753083,606.5,604.56,0.30357491]
[1745464653368,1.25490548,606.19,604.56,0.30357491]
[1745464653561,1.25490548,606.19,604.55,2.939]
[1745464653761,1.25490548,606.19,604.56,0.30357789]
[1745464655066,0.2875332,606.18,604.56,0.30357789]
[1745464655269,0.2875332,606.18,604.57,0.30357955]
[1745464655465,0.2875332,606.18,604.56,0.30357955]
[1745464655666,0.2875332,606.18,604.57,0.30357955]
[1745464655865,0.2875332,606.18,604.56,0.30357955]
[1745464656065,1.25490548,606.17,604.57,0.30357955]
[1745464656267,1.25490548,606.17,604.58,0.30357955]
[1745464656569,1.25490548,606.17,604.59,0.30357955]
[1745464656868,1.25490548,606.17,604.6,0.30357955]
[1745464657066,1.25490548,606.17,604.61,0.30357955]
[1745464657267,1.25490548,606.17,604.56,0.30357955]
[1745464657462,1.25490548,606.17,604.57,0.30357955]
[1745464657661,1.25490548,606.17,604.58,0.30357955]
[1745464657864,1.25490548,606.17,604.59,0.30357955]
[1745464658063,0.28753558,606.16,604.56,0.30357955]
[1745464658266,0.28753558,606.16,604.57,0.30357955]
[1745464658463,0.28753558,606.16,604.56,0.30357955]
[1745464658663,0.28753558,606.16,604.57,0.30357955]
[1745464658868,0.28753558,606.16,604.56,0.30357955]
[1745464659066,0.28753558,606.16,604.57,0.30357955]
[1745464659373,0.28753558,606.16,604.58,0.30357955]
[1745464659572,0.28753558,606.16,604.59,0.30357955]
[1745464659768,1.25490548,606.24,604.55,2.939]
[1745464659966,1.25490548,606.24,604.56,0.30358328]
[1745464660167,0.28752727,606.15,604.56,0.30358328]
[1745464660368,1.25490548,606.24,604.56,0.30358328]
[1745464660772,1.25490548,606.2,604.56,0.30358328]
[1745464661675,0.28753202,606.19,604.56,0.30358328]
[1745464661874,0.28753202,606.19,604.56,1.66558328]
[1745464662074,0.28753202,606.19,604.56,1.362]
[1745464662477,0.28753202,606.19,604.57,0.30352533]
[1745464662776,1.25490548,606.2,604.57,0.30352533]
[1745464663477,1.25490548,606.65,604.57,0.30352533]
[1745464664072,0.28744177,606.64,604.57,0.30352533]
[1745464665779,1.25490548,606.65,604.57,0.30352533]
[1745464666077,1.25490548,606.69,604.57,0.30352533]
[1745464667179,0.28742278,606.68,604.57,0.30352533]
[1745464667676,0.28742278,606.68,604.56,1.64942278]
[1745464667879,0.28742278,606.68,604.57,0.30345071]
[1745464668780,1.25490548,606.96,604.57,0.30345071]
[1745464668976,0.28739073,606.67,604.57,0.30345071]
[1745464669281,1.25490548,606.96,604.56,1.64939073]
[1745464669484,1.25490548,606.96,604.57,0.30345339]
[1745464669981,0.28739073,606.95,604.57,0.30345339]
[1745464670980,1.25490548,606.91,604.57,0.30345339]
[1745464672082,0.28740853,606.9,604.57,0.30345339]
[1745464672380,0.28740853,606.9,604.56,1.362]
[1745464672579,0.28740853,606.9,604.57,0.3034604]
[1745464673279,1.25490548,606.83,604.57,0.3034604]
[1745464673981,1.25490548,606.83,604.56,1.64940853]
[1745464674177,1.25490548,606.83,604.57,0.30345257]
[1745464675082,0.28741803,606.82,604.57,0.30345257]
[1745464677977,0.28741803,606.82,604.58,0.30345257]
[1745464678284,0.28741803,606.82,604.59,0.30345257]
[1745464678579,0.28741803,606.82,604.6,0.30345257]
[1745464678781,0.28741803,606.82,604.56,1.64941803]
[1745464678982,0.28741803,606.82,604.57,0.30345245]
[1745464679182,0.28741803,606.82,604.58,0.30345245]
[1745464679382,0.28741803,606.82,604.59,0.30345245]
[1745464679582,0.28741803,606.82,604.6,0.30345245]
[1745464679878,0.28741803,606.82,604.61,0.30345245]
[1745464680082,0.28741803,606.82,604.62,0.30345245]
[1745464680383,0.28741803,606.82,604.56,1.64941803]
[1745464680683,1.25490548,606.63,604.57,0.30344715]
[1745464680879,1.25490548,606.63,604.58,0.30344715]
[1745464681082,1.25490548,606.63,604.59,0.30344715]
[1745464681279,1.25490548,606.63,604.6,0.30344715]
[1745464681483,1.25490548,606.63,604.61,0.30344715]
[1745464681683,1.25490548,606.63,604.62,0.30344715]
[1745464681984,1.25490548,606.63,604.63,0.30344715]
[1745464682183,1.25490548,606.63,604.64,0.30344715]
[1745464682384,1.25490548,606.63,604.65,0.30344715]
[1745464682685,1.25490548,606.63,604.66,0.30344715]
[1745464682880,1.25490548,606.63,604.67,0.30344715]
[1745464683085,1.25490548,606.48,604.68,0.30344662]
[1745464683384,1.25490548,606.48,604.69,0.30344662]
[1745464683583,1.25490548,606.48,604.7,0.30344662]
[1745464683781,1.25490548,606.48,604.6,0.30344662]
[1745464685086,0.28742515,606.47,604.61,0.28742515]
[1745464685287,0.28742515,606.47,604.62,0.30344662]
[1745464686285,0.28742515,606.47,604.61,0.28742515]
[1745464686484,0.28742515,606.47,604.62,0.3034342]
[1745464686786,1.25490548,607.07,604.62,0.3034342]
[1745464686985,1.25490548,607.07,604.61,0.28735276]
[1745464687285,1.25490548,607.07,604.62,0.3034342]
[1745464688089,0.28735276,607.06,604.62,0.3034342]
[1745464689689,0.28735276,607.06,604.61,0.28735276]
[1745464689987,1.25490548,607.15,604.62,0.3034353]
[1745464690191,1.25490548,607.15,604.6,0.3034353]
[1745464690392,1.25490548,607.14,604.63,1.213]
[1745464690593,1.25490548,607.14,604.64,0.3034353]
[1745464690987,0.28734209,607.13,604.64,0.3034353]
[1745464691193,0.28734209,607.13,604.63,1.213]
[1745464691488,0.28734209,607.13,604.64,0.30344058]
[1745464692689,0.28734209,607.13,604.63,1.213]
[1745464692897,1.25490548,607.11,604.64,0.30343122]
[1745464695990,1.25490548,607.15,604.64,0.30343122]
[1745464697095,0.287367,607.14,604.64,0.30343122]
[1745464697495,0.287367,607.14,604.63,1.500367]
[1745464697696,0.287367,607.14,604.65,1.148]
[1745464697895,0.287367,607.14,604.66,0.30346081]
[1745464698797,1.25490548,607.15,604.66,0.30346081]
[1745464699097,1.25490548,607.15,604.65,1.148]
[1745464699293,1.25490548,607.15,604.66,0.30344057]
[1745464699698,1.25490548,606.73,604.66,0.30344057]
[1745464702497,1.25490548,606.73,604.66,1.59544057]
[1745464702698,2.13508225,606.89,604.67,0.30344057]
[1745464702699,1.25490548,606.89,604.67,0.30344057]
[1745464702998,0.28739429,606.72,604.67,0.30344057]
[1745464703298,1.25490548,606.89,604.67,0.30344057]
[1745464704796,0.28737531,606.88,604.67,0.30344057]
[1745464705299,1.25490548,606.67,604.67,0.30344057]
[1745464706098,1.25490548,606.67,604.67,1.51044057]
[1745464706298,1.25490548,606.67,604.68,0.30344057]
[1745464708098,0.28740023,606.66,604.68,0.30344057]
[1745464708299,1.25490548,606.59,604.68,1.35311237]
[1745464708499,1.25490548,606.59,604.68,1.0496718]
[1745464708700,1.25490548,606.59,604.69,0.30342667]
[1745464710094,1.25490548,606.59,604.7,1.58]
[1745464710305,1.25490548,606.59,604.71,0.30342667]
[1745464710702,1.25490548,606.6,604.71,0.30342667]
[1745464712104,0.28740497,606.59,604.71,0.30342667]
[1745464713802,1.25490548,606.6,604.71,0.30342667]
[1745464714105,1.25490548,606.6,604.71,1.35309847]
[1745464714298,1.25490548,606.6,604.72,0.30342667]
[1745464714510,0.28740497,606.59,604.72,0.30342667]
[1745464715005,0.28740497,606.59,604.71,1.0496718]
[1745464715205,0.28740497,606.59,604.73,0.30341353]
[1745464715404,0.28740497,606.59,604.74,0.30341353]
[1745464715602,0.28740497,606.59,604.72,0.30341353]
[1745464716609,0.28740497,606.59,604.76,1.0496718]
[1745464716807,1.25490548,606.65,604.77,0.30341353]
[1745464717108,0.28739192,606.58,604.77,1.53541353]
[1745464717308,0.28739192,606.58,604.78,0.30341353]
[1745464718109,0.28739192,606.58,604.77,1.232]
[1745464718308,0.28739192,606.58,604.78,0.30341231]
[1745464719210,0.28739192,606.58,604.79,1.0496718]
[1745464719404,0.28739192,606.58,604.8,0.30341231]
[1745464719711,1.25490548,606.6,604.79,1.0496718]
[1745464719909,1.25490548,606.6,604.8,0.30339391]
[1745464720108,0.28738717,606.57,604.8,0.30339391]
[1745464721611,0.28738717,606.57,604.87,1.0496718]
[1745464721612,1.25490548,606.51,604.87,1.0496718]
[1745464721809,1.25490548,606.51,604.88,0.30339391]
[1745464724414,1.25490548,606.51,604.87,1.0496718]
[1745464724715,1.25490548,606.41,604.91,1.0496718]
[1745464725014,1.25490548,606.41,604.92,0.30334802]
[1745464727617,1.25490548,606.41,604.93,0.30334592]
[1745464727916,1.25490548,606.41,604.94,0.30334592]
[1745464728113,1.25490548,606.41,604.92,0.30334592]
[1745464728312,1.25490548,606.41,604.93,0.30334592]
[1745464728517,1.25490548,606.41,604.92,0.30334592]
[1745464728717,0.28736463,606.52,604.93,0.30334592]
[1745464728919,0.28736463,606.52,604.86,0.30334592]
[1745464729219,0.28736463,606.52,604.87,1.70034798]
[1745464729519,0.28736463,606.52,604.88,0.30334798]
[1745464731824,1.25490548,606.7,604.88,0.30334798]
[1745464733025,0.28733497,606.69,604.88,0.30334798]
[1745464733227,0.28733497,606.69,604.89,1.418]
[1745464733425,0.28733497,606.69,604.9,0.30334798]
[1745464733826,0.28733497,606.69,604.89,1.418]
[1745464734126,0.28733497,606.69,604.9,0.30334626]
[1745464734728,1.25490548,606.97,604.9,0.30334626]
[1745464735126,0.28730057,606.68,604.9,0.30334626]
[1745464735421,1.25490548,606.97,604.89,1.418]
[1745464735723,1.25490548,606.97,604.9,0.30334884]
[1745464736022,0.28730057,606.96,604.9,0.30334884]
[1745464736227,1.25490548,606.93,604.9,0.30334884]
[1745464736525,1.25490548,606.93,604.9,1.61134884]
[1745464736727,1.25490548,606.93,604.91,0.30334884]
[1745464737026,1.25490548,606.93,604.9,1.308]
[1745464737227,1.25490548,606.93,604.91,0.30334103]
[1745464738725,1.25490548,606.93,604.92,0.30334103]
[1745464738922,1.25490548,606.69,604.91,0.30334103]
[1745464740230,1.25490548,606.69,604.92,0.30334103]
[1745464740527,1.25490548,606.69,604.93,0.30334103]
[1745464740726,1.25490548,606.69,604.91,0.30334103]
[1745464740926,1.25490548,606.69,604.92,0.30334103]
[1745464741127,1.25490548,606.69,604.93,0.30334103]
[1745464741328,1.25490548,606.87,604.91,0.30334103]
[1745464741628,1.25490548,606.87,604.92,0.30334103]
[1745464741830,1.25490548,606.87,604.93,0.30334103]
[1745464742024,1.25490548,606.87,604.91,0.30334103]
[1745464742332,1.25490548,606.87,604.92,0.30334103]
[1745464742529,1.25490548,606.87,604.9,1.308]
[1745464742530,1.25490548,606.87,604.93,0.30334103]
[1745464742725,1.25490548,606.87,604.91,0.30334103]
[1745464742926,1.25490548,606.87,604.92,0.30334103]
[1745464743127,1.25490548,606.87,604.91,0.30334103]
[1745464743327,1.25490548,606.87,604.92,0.30334103]
[1745464743531,1.25490548,606.87,604.91,0.30334103]
[1745464743733,1.25490548,606.87,604.92,0.30334103]
[1745464744032,1.25490548,606.99,604.93,0.30334103]
[1745464744228,1.25490548,606.99,604.94,0.30334103]
[1745464744436,1.25490548,606.99,604.9,1.308]
[1745464744635,1.25490548,606.99,604.91,0.30334828]
[1745464745034,0.28729227,606.98,604.91,0.30334828]
[1745464746539,0.28729227,606.98,604.9,1.59529227]
[1745464746740,1.25490548,607.0,604.9,1.308]
[1745464747040,0.28729108,606.97,604.9,1.59529108]
[1745464747441,0.28729108,606.97,604.91,0.30335308]
[1745464747742,0.28729108,606.97,604.91,1.38235308]
[1745464747941,0.28729108,606.97,604.91,1.079]
[1745464748136,0.28729108,606.97,604.92,0.30335308]
[1745464748639,1.25490548,606.92,604.92,0.30335308]
[1745464749442,1.25490548,606.92,604.91,1.079]
[1745464749644,1.25490548,606.92,604.92,0.30335369]
[1745464751040,0.28730887,606.91,604.92,0.30335369]
[1745464751245,1.25490548,606.82,604.92,0.30335369]
[1745464751844,1.25490548,606.82,604.92,1.34235369]
[1745464752043,1.25490548,606.82,604.93,0.30335369]
[1745464752340,1.25490548,606.82,604.92,1.039]
[1745464752546,1.25490548,606.82,604.93,0.3033539]
[1745464753044,0.28731955,606.81,604.93,0.3033539]
[1745464753840,0.28731955,606.81,604.92,1.32631955]
[1745464754042,0.28731955,606.81,604.93,0.30338483]
[1745464754642,1.25490548,606.75,604.93,0.30338483]
[1745464755442,1.25490548,606.75,604.92,1.32631955]
[1745464755648,1.25490548,606.75,604.93,0.30338676]
[1745464757043,0.28733497,606.74,604.92,1.039]
[1745464757347,0.28733497,606.74,604.93,0.30337469]
[1745464758945,1.25490548,606.81,604.93,0.30337469]
[1745464760046,0.28732548,606.8,604.93,0.30337469]
[1745464761754,1.25490548,606.81,604.93,0.30337469]
[1745464762152,1.25490548,606.95,604.93,0.30337469]
[1745464763054,0.28727804,606.94,604.93,0.30337469]
[1745464763554,0.28727804,606.94,604.92,1.32627804]
[1745464763754,0.28727804,606.94,604.93,0.30330988]
[1745464764956,1.25490548,606.96,604.93,0.30330988]
[1745464765159,1.25490548,606.96,604.92,0.30330988]
[1745464766159,0.28727804,606.95,604.92,0.59058792]
[1745464766352,0.28727804,606.95,604.93,0.30330988]
[1745464767557,0.28727804,606.95,604.93,1.53230988]
[1745464767756,0.28727804,606.95,604.94,0.30330988]
[1745464768052,1.25490548,606.99,604.94,0.30330988]
[1745464768458,1.25490548,606.99,604.95,0.3032998]
[1745464768654,1.25490548,606.99,604.94,0.3032998]
[1745464768854,1.25490548,606.99,604.95,0.3032998]
[1745464769257,1.25490548,606.99,604.93,1.229]
[1745464769258,1.25490548,606.97,604.96,0.3032998]
[1745464769454,1.25490548,606.97,604.94,0.3032998]
[1745464770465,0.28727211,606.98,604.94,0.3032998]
[1745464772064,0.28699374,609.13,604.97,0.3032998]
[1745464772263,0.28699374,609.13,604.96,0.3032998]
[1745464772659,1.25627911,606.76,604.97,1.35273701]
[1745464772956,1.25627911,606.76,604.98,0.3032998]
[1745464773362,1.25627911,606.76,604.99,0.3032998]
[1745464773668,1.25627911,606.76,605.0,0.3032998]
[1745464773858,1.25627911,606.76,605.01,0.3032998]
[1745464774062,1.25627911,606.76,604.98,0.3032998]
[1745464775864,0.2872567,606.77,605.02,1.04943721]
[1745464776163,0.2872567,606.77,605.03,0.3032998]
[1745464776362,1.25627911,606.88,605.03,0.3032998]
[1745464776556,0.28721521,606.86,605.03,0.3032998]
[1745464778463,0.28721521,606.86,605.0,0.3032998]
[1745464778666,0.28721521,606.86,605.01,0.3032998]
[1745464778862,0.28721521,606.86,605.02,0.3032998]
[1745464779061,0.28721521,606.86,605.0,0.3032998]
[1745464779259,0.28721521,606.86,605.01,0.3032998]
[1745464779463,0.28721521,606.86,605.0,0.3032998]
[1745464779658,0.28721521,606.86,605.01,0.3032998]
[1745464779859,0.28721521,606.86,605.0,0.3032998]
[1745464780059,0.28721521,606.86,605.01,0.3032998]
[1745464780263,0.28721521,606.86,605.0,0.3032998]
[1745464780459,0.28721521,606.86,605.01,0.3032998]
[1745464780760,0.28721521,606.86,605.02,0.3032998]
[1745464781060,0.28721521,606.86,605.0,0.3032998]
[1745464781365,0.28721521,606.86,604.99,0.28721521]
[1745464781564,0.28721521,606.86,605.0,0.30318992]
[1745464782966,1.25627911,607.12,604.95,1.482]
[1745464783166,0.28719743,606.85,604.99,0.28719743]
[1745464783466,1.25627911,607.12,605.0,0.30319341]
[1745464783967,1.25627911,607.59,605.0,0.30319341]
[1745464784567,1.25627911,607.59,604.99,0.28719743]
[1745464784762,0.28714174,607.58,605.0,0.30319672]
[1745464786462,0.28714174,607.58,605.01,1.574]
[1745464786663,0.28714174,607.58,605.02,0.30319672]
[1745464788869,0.28714174,607.58,605.02,1.68419672]
[1745464789068,0.28714174,607.58,605.03,0.30319672]
[1745464790971,0.28714174,607.58,605.02,1.381]
[1745464791272,1.25627911,607.54,605.03,0.30323838]
[1745464792572,1.25627911,607.54,605.02,1.381]
[1745464792769,1.25627911,607.54,605.03,0.30323865]
[1745464793074,0.28717255,607.53,605.03,0.30323865]
[1745464794973,1.25627911,607.28,605.03,0.30323865]
[1745464795870,1.25627911,607.28,605.02,1.381]
[1745464796076,0.28720573,607.27,605.03,0.30323904]
[1745464797781,1.25627911,607.28,605.03,0.30323904]
[1745464798179,1.25627911,607.05,605.03,0.30323904]
[1745464799180,0.28719269,607.04,605.02,1.66819269]
[1745464799474,0.28719269,607.04,605.03,0.30319365]
[1745464800680,0.28719269,607.04,605.02,1.66819269]
[1745464800884,1.25627911,607.22,605.03,0.30316551]
[1745464801681,1.25627911,607.22,605.03,1.62716551]
[1745464801882,1.25627911,607.22,605.04,0.30316551]
[1745464802084,0.28715241,607.21,605.05,0.30316551]
[1745464802276,0.28715241,607.21,605.06,0.30316551]
[1745464802477,0.28715241,607.21,605.07,0.30316551]
[1745464802684,0.28715241,607.21,605.08,0.30316551]
[1745464802884,0.28715241,607.21,605.09,0.30316551]
[1745464803185,0.28715241,607.21,605.1,0.30316551]
[1745464803384,0.28715241,607.21,605.11,0.30316551]
[1745464803684,0.28715241,607.21,605.12,0.30316551]
[1745464803883,1.25627911,607.22,605.13,0.30316551]
[1745464804086,1.25627911,607.22,605.14,0.30316551]
[1745464804282,1.25627911,607.02,605.15,1.35260272]
[1745464804583,1.25627911,607.02,605.16,0.30316551]
[1745464804786,1.25627911,607.02,605.17,0.30316551]
[1745464805084,0.28717373,607.01,605.15,1.04943721]
[1745464805282,0.28717373,607.01,605.16,0.30316665]
[1745464805483,0.28717373,607.01,605.17,0.30316665]
[1745464805683,0.28717373,607.01,605.18,0.30316665]
[1745464805885,0.28717373,607.01,605.16,0.30316665]
[1745464806086,0.28717373,607.01,605.17,0.30316665]
[1745464806390,0.28717373,607.01,605.18,0.30316665]
[1745464806589,1.25627911,606.99,605.26,1.04943721]
[1745464807185,1.25627911,606.99,605.27,1.139]
[1745464807789,1.25627911,606.99,605.28,0.30316144]
[1745464808186,0.28716307,606.98,605.28,0.30316144]
[1745464809088,0.28716307,606.98,605.28,1.51916144]
[1745464809284,0.28716307,606.98,605.29,0.30316144]
[1745464809785,1.25627911,607.03,605.29,0.30316144]
[1745464810089,1.25627911,607.03,605.28,1.216]
[1745464810285,1.25627911,607.03,605.29,0.30315067]
[1745464811193,0.28715241,607.02,605.29,0.30315067]
[1745464811992,1.54343152,607.02,605.29,0.30315067]
[1745464812992,1.25627911,607.02,605.29,0.30315067]
[1745464813188,0.28715833,607.01,605.29,0.30315067]
[1745464814392,1.54343744,607.01,605.29,0.30315067]
[1745464815895,1.25627911,607.01,605.29,0.30315067]
[1745464816192,0.28717847,607.0,605.29,0.30315067]
[1745464816699,0.28717847,607.0,605.29,1.29915067]
[1745464816891,0.28717847,607.0,605.3,0.30315067]
[1745464820596,0.28717847,607.0,605.3,1.58315067]
[1745464820998,0.28717847,607.0,605.31,0.30315067]
[1745464821801,1.25627911,607.03,605.3,1.28]
[1745464822001,1.25627911,607.03,605.31,0.30315575]
[1745464822196,0.2871453,606.99,605.31,0.30315575]
[1745464824703,0.2871453,606.99,605.31,1.67715575]
[1745464824909,1.25627911,607.24,605.32,0.30315575]
[1745464825110,0.28711213,606.98,605.32,0.30315575]
[1745464825304,1.25627911,607.24,605.33,0.30313327]
[1745464825504,1.25627911,607.24,605.32,0.30313327]